bitfinex/quotes_SOLUSD_20251223
["timestamp","ask_amount","ask_price","bid_price","bid_amount"]
[1766518185017,0.69,123.56,123.53,2.97994283]
[1766518186046,0.69,123.56,123.53,1.90873874]
[1766518186440,8.78324251,123.56,123.52,8.09585492]
[1766518186618,0.69,123.56,123.53,1.90873874]
[1766518187348,8.09087876,123.6,123.55,1.90873874]
[1766518187651,23.56016432,123.61,123.58,1.90873874]
[1766518187819,0.69,123.6,123.58,1.90873874]
[1766518188841,0.69,123.6,123.55,1.90873874]
[1766518188842,0.69,123.6,123.57,1.90873874]
[1766518193132,0.69,123.6,123.58,1.90873874]
[1766518198224,0.69,123.6,123.57,1.90873874]
[1766518200549,0.69,123.6,123.56,8.09297911]
[1766518200757,0.69,123.6,123.57,1.90873874]
[1766518201749,8.09070988,123.6,123.55,16.99328564]
[1766518201941,0.69,123.58,123.53,10.43767296]
[1766518202246,0.69,123.58,123.56,1.90873874]
[1766518203943,0.69,123.58,123.55,8.09388744]
[1766518204137,0.69,123.58,123.56,1.90873874]
[1766518205660,8.09065149,123.6,123.56,10.00193742]
[1766518205852,0.69,123.59,123.57,1.90873874]
[1766518207352,22.87047038,123.61,123.56,8.09319868]
[1766518207552,0.69,123.61,123.56,8.09319868]
[1766518207747,0.69,123.6,123.58,1.90873874]
[1766518210456,0.69,123.61,123.59,1.90873874]
[1766518212863,8.08865162,123.63,123.59,1.90873874]
[1766518213035,0.69,123.62,123.61,1.90873874]
[1766518214244,0.69,123.66,123.61,1.90873874]
[1766518214450,0.69,123.66,123.62,1.90873874]
[1766518214756,1.90873874,123.65,123.6,1.90873874]
[1766518214947,0.69,123.64,123.6,1.90873874]
[1766518215854,0.69,123.64,123.59,8.09119972]
[1766518216058,0.69,123.64,123.6,1.90873874]
[1766518216247,0.69,123.64,123.6,9.99925629]
[1766518216449,0.69,123.64,123.61,1.90873874]
[1766518216959,0.69,123.63,123.6,9.99925629]
[1766518217467,0.69,123.63,123.59,1.90873874]
[1766518217762,0.69,123.63,123.6,1.90873874]
[1766518222868,0.69,123.63,123.61,1.90873874]
[1766518224155,0.69,123.63,123.62,7.4]
[1766518228446,0.69,123.64,123.62,9.30873874]
[1766518228773,0.69,123.64,123.62,7.4]
[1766518229988,0.69,123.64,123.62,9.30873874]
[1766518230489,0.69,123.65,123.62,7.4]
[1766518231087,0.69,123.65,123.62,9.30873874]
[1766518233994,0.69,123.65,123.62,7.4]
[1766518235888,8.7776658,123.65,123.62,7.4]
[1766518236069,8.7776658,123.65,123.62,9.30873874]
[1766518237086,8.7776658,123.65,123.62,7.4]
[1766518237972,0.7,123.64,123.62,7.4]
[1766518238170,0.7,123.63,123.62,7.4]
[1766518238563,2.60873874,123.63,123.6,0.67]
[1766518238761,0.7,123.62,123.59,2.57873874]
[1766518239062,0.7,123.61,123.58,0.67]
[1766518239262,0.7,123.62,123.59,0.67]
[1766518240493,0.7,123.62,123.59,2.57873874]
[1766518241291,8.78936879,123.62,123.59,0.67]
[1766518241758,0.7,123.62,123.59,0.67]
[1766518242381,0.7,123.62,123.59,2.57873874]
[1766518246089,0.7,123.62,123.59,3.64972712]
[1766518248411,0.7,123.62,123.59,0.67]
[1766518248618,0.7,123.62,123.59,3.64972712]
[1766518249217,0.7,123.61,123.58,8.76192188]
[1766518249413,0.7,123.61,123.58,11.741649]
[1766518249587,8.78931879,123.62,123.59,0.67]
[1766518250218,8.78931879,123.62,123.6,7.4]
[1766518250584,8.08931879,123.62,123.6,7.4]
[1766518250786,0.7,123.61,123.6,7.4]
[1766518252713,8.08931879,123.62,123.6,7.4]
[1766518253022,11.06904591,123.62,123.6,6.68]
[1766518253590,8.08931879,123.62,123.6,6.68]
[1766518253803,11.06904591,123.62,123.59,0.67]
[1766518255815,11.06904591,123.62,123.58,3.64972712]
[1766518256117,8.08931879,123.62,123.58,3.64972712]
[1766518256316,11.06904591,123.62,123.58,0.67]
[1766518258519,2.97972712,123.59,123.55,0.67]
[1766518258717,43.09258363,123.62,123.55,0.67]
[1766518258894,2.97972712,123.58,123.55,0.67]
[1766518259715,2.97972712,123.59,123.55,0.67]
[1766518260009,2.97972712,123.58,123.54,0.67]
[1766518260213,2.97972712,123.58,123.55,0.67]
[1766518260510,46.07917044,123.59,123.55,0.67]
[1766518260820,8.09126952,123.59,123.57,0.67]
[1766518261192,8.09070361,123.6,123.57,0.67]
[1766518261408,8.09070361,123.6,123.57,3.64972712]
[1766518263396,8.09070361,123.6,123.57,0.67]
[1766518264522,8.08996035,123.61,123.57,0.67]
[1766518264720,2.97972712,123.6,123.57,0.67]
[1766518265925,28.31486124,123.61,123.57,0.67]
[1766518265926,2.97972712,123.59,123.57,0.67]
[1766518266122,2.97972712,123.59,123.56,0.67]
[1766518266719,11.07135199,123.59,123.56,0.67]
[1766518268332,8.09162487,123.59,123.56,0.67]
[1766518268534,14.78,123.61,123.57,0.7]
[1766518268715,2.97972712,123.6,123.57,0.7]
[1766518269025,2.97972712,123.6,123.56,0.7]
[1766518269226,2.97972712,123.59,123.56,0.7]
[1766518270406,2.97972712,123.58,123.55,0.7]
[1766518270606,11.07196559,123.58,123.55,0.7]
[1766518271934,8.09223847,123.58,123.55,0.7]
[1766518272128,11.07131609,123.59,123.55,0.7]
[1766518272634,11.07131609,123.59,123.55,3.67972712]
[1766518272804,11.07131609,123.59,123.56,0.7]
[1766518273234,8.09158897,123.59,123.56,0.7]
[1766518273425,11.07131609,123.59,123.56,0.7]
[1766518274011,8.09158897,123.59,123.56,0.7]
[1766518274226,11.07131609,123.59,123.56,0.7]
[1766518275948,28.31809692,123.6,123.54,18.45972712]
[1766518276232,2.97972712,123.56,123.53,0.7]
[1766518276943,2.97972712,123.56,123.52,0.7]
[1766518277635,11.07343768,123.56,123.52,0.7]
[1766518278834,11.07343768,123.56,123.52,3.67972712]
[1766518279636,11.07343768,123.56,123.52,0.7]
[1766518280037,2.97972712,123.55,123.52,0.7]
[1766518280617,31.30652282,123.56,123.52,0.7]
[1766518281038,2.97972712,123.55,123.52,0.7]
[1766518281216,46.08652282,123.56,123.52,0.7]
[1766518282039,2.97972712,123.55,123.52,0.7]
[1766518282337,8.09434128,123.55,123.52,0.7]
[1766518283430,11.0740684,123.55,123.52,0.7]
[1766518284130,8.09434128,123.55,123.52,0.7]
[1766518284337,8.09434128,123.55,123.53,0.7]
[1766518285120,21.51024707,123.57,123.53,0.7]
[1766518285324,33.31051995,123.57,123.54,0.7]
[1766518286039,18.53051995,123.57,123.54,0.7]
[1766518288534,21.51024707,123.57,123.54,0.7]
[1766518289541,18.53051995,123.57,123.54,0.7]
[1766518291042,8.09284699,123.57,123.55,0.7]
[1766518291415,0.66,123.6,123.55,2.97972712]
[1766518291621,0.66,123.6,123.57,0.7]
[1766518292930,0.66,123.6,123.57,3.67972712]
[1766518293326,8.75076122,123.6,123.57,0.7]
[1766518293949,0.72,123.59,123.56,3.67972712]
[1766518294329,8.81076122,123.6,123.57,0.7]
[1766518294529,11.79048834,123.6,123.57,0.7]
[1766518294843,11.07048834,123.6,123.57,0.7]
[1766518295044,0.72,123.59,123.57,0.7]
[1766518295353,11.79048834,123.6,123.57,0.7]
[1766518295955,0.72,123.59,123.57,0.7]
[1766518296253,11.79048834,123.6,123.57,0.7]
[1766518296988,8.81076122,123.6,123.57,0.7]
[1766518299659,11.79048834,123.6,123.57,0.7]
[1766518303055,8.81076122,123.6,123.57,0.7]
[1766518303264,11.79048834,123.6,123.57,0.7]
[1766518303434,8.81076122,123.6,123.57,0.7]
[1766518304866,11.79048834,123.6,123.57,0.7]
[1766518305052,11.79048834,123.6,123.56,2.97972712]
[1766518305053,8.77008932,123.61,123.58,2.97972712]
[1766518305363,8.09008932,123.61,123.59,0.71]
[1766518308951,8.77008932,123.61,123.59,0.71]
[1766518309651,8.09008932,123.61,123.59,0.71]
[1766518311261,8.77008932,123.61,123.58,0.71]
[1766518313571,8.09008932,123.61,123.59,0.71]
[1766518314570,8.77008932,123.61,123.59,0.71]
[1766518315273,8.09008932,123.61,123.57,1.90731909]
[1766518315466,8.77008932,123.61,123.58,0.71]
[1766518316151,8.09008932,123.61,123.58,0.71]
[1766518317961,19.20718695,123.62,123.58,0.71]
[1766518318356,19.20718695,123.62,123.59,0.71]
[1766518319487,8.0888031,123.63,123.61,0.71]
[1766518321376,9.9953165,123.64,123.58,18.52931194]
[1766518321577,2.58731909,123.63,123.59,1.90731909]
[1766518321877,2.58731909,123.63,123.6,0.71]
[1766518322559,0.68,123.63,123.6,0.71]
[1766518322976,30.21531002,123.64,123.6,0.71]
[1766518323496,0.68,123.63,123.6,0.71]
[1766518324578,8.76882639,123.63,123.6,0.71]
[1766518329875,10.67614548,123.63,123.6,0.71]
[1766518330380,0.69,123.61,123.58,13.01499205]
[1766518330578,2.59731909,123.61,123.58,0.67]
[1766518332279,10.68776756,123.61,123.58,0.67]
[1766518332678,2.59731909,123.6,123.58,0.67]
[1766518333270,0.69,123.6,123.58,0.67]
[1766518333476,10.68776756,123.61,123.58,0.67]
[1766518333866,8.78044847,123.61,123.58,0.67]
[1766518334262,8.08960889,123.62,123.6,0.67]
[1766518334467,23.55894472,123.63,123.6,0.67]
[1766518335276,23.55894472,123.63,123.61,0.67]
[1766518335277,22.86894472,123.63,123.61,0.67]
[1766518335598,14.78,123.63,123.61,0.67]
[1766518337063,22.86866714,123.63,123.61,0.67]
[1766518339086,12.34499205,123.66,123.62,0.67]
[1766518339261,1.90731909,123.66,123.62,0.67]
[1766518339465,2.59731909,123.66,123.62,0.67]
[1766518339665,2.59731909,123.66,123.62,2.57731909]
[1766518339891,2.59731909,123.66,123.63,0.67]
[1766518340392,10.68416237,123.66,123.63,0.67]
[1766518342390,10.68416237,123.66,123.62,0.67]
[1766518342391,2.59731909,123.65,123.62,0.67]
[1766518343797,10.68505446,123.65,123.62,0.67]
[1766518347397,8.77773537,123.65,123.62,0.67]
[1766518347613,10.68505446,123.65,123.62,0.67]
[1766518348098,0.69,123.64,123.62,0.67]
[1766518351100,8.77818114,123.64,123.62,0.67]
[1766518352097,10.68550023,123.64,123.62,0.67]
[1766518353000,8.77818114,123.64,123.62,0.67]
[1766518354393,10.68550023,123.64,123.62,0.67]
[1766518356502,9.99550023,123.64,123.58,35.00926517]
[1766518356800,1.90731909,123.63,123.6,0.71]
[1766518357501,30.65288337,123.67,123.6,0.71]
[1766518357710,1.90731909,123.66,123.61,0.66]
[1766518357884,2.56731909,123.66,123.61,0.66]
[1766518358600,10.65414577,123.66,123.62,0.66]
[1766518359798,19.18398687,123.67,123.63,0.66]
[1766518360005,20.43130596,123.67,123.63,0.66]
[1766518360308,14.76,123.68,123.64,0.66]
[1766518360505,16.66731909,123.68,123.64,0.66]
[1766518360890,17.32731909,123.68,123.64,0.66]
[1766518361306,1.90731909,123.67,123.64,0.66]
[1766518363087,22.84552186,123.68,123.65,0.66]
[1766518363487,14.76,123.68,123.65,0.66]
[1766518364311,14.76,123.68,123.66,0.66]
[1766518364816,10.85207423,123.69,123.66,0.66]
[1766518365995,1.90731909,123.68,123.66,0.66]
[1766518367294,8.94475514,123.69,123.66,0.66]
[1766518367614,1.90731909,123.68,123.66,0.66]
[1766518368010,2.97754622,123.68,123.66,0.66]
[1766518370918,11.06336894,123.68,123.66,0.66]
[1766518373913,8.08582272,123.68,123.66,0.66]
[1766518374316,8.74582272,123.68,123.66,0.66]
[1766518377025,8.08582272,123.68,123.66,0.66]
[1766518380332,11.72336894,123.68,123.65,0.66]
[1766518381920,2.97754622,123.66,123.63,0.66]
[1766518382234,3.63754622,123.66,123.63,0.66]
[1766518383930,11.72480632,123.66,123.63,0.66]
[1766518387204,8.7472601,123.66,123.63,0.66]
[1766518387404,11.72480632,123.66,123.63,0.66]
[1766518389029,8.7472601,123.66,123.63,0.66]
[1766518391707,8.7472601,123.66,123.63,3.63754622]
[1766518392230,2.97754622,123.68,123.65,3.69754622]
[1766518392231,8.76562853,123.68,123.65,3.69754622]
[1766518393515,8.76562853,123.68,123.65,0.72]
[1766518393835,0.68,123.67,123.64,0.72]
[1766518394039,0.68,123.66,123.63,3.69754622]
[1766518395136,8.76688589,123.66,123.63,3.69754622]
[1766518397541,11.06443211,123.66,123.61,10.43767296]
[1766518397839,3.65754622,123.65,123.62,0.72]
[1766518398841,11.74532471,123.65,123.62,0.72]
[1766518399220,8.76777849,123.65,123.62,0.72]
[1766518401748,0.68,123.64,123.6,3.69754622]
[1766518401943,0.68,123.64,123.61,0.72]
[1766518402334,0.68,123.63,123.6,3.69754622]
[1766518402736,8.76888316,123.63,123.6,3.69754622]
[1766518403729,0.68,123.62,123.59,11.06865739]
[1766518403944,0.68,123.62,123.59,2.97754622]
[1766518404146,0.68,123.62,123.59,3.69754622]
[1766518404343,0.68,123.62,123.6,0.72]
[1766518404527,8.76888316,123.63,123.6,0.72]
[1766518405451,11.06642938,123.63,123.57,24.28658166]
[1766518405653,0.68,123.61,123.58,3.69754622]
[1766518405955,8.09061488,123.6,123.58,0.72]
[1766518406154,0.68,123.61,123.58,0.72]
[1766518406155,8.77015097,123.61,123.58,0.72]
[1766518408267,11.74769719,123.61,123.58,0.72]
[1766518409367,11.74769719,123.61,123.56,11.07042972]
[1766518409368,0.68,123.59,123.56,0.72]
[1766518409533,0.68,123.59,123.55,0.72]
[1766518409534,3.65754622,123.58,123.55,0.72]
[1766518411371,11.74986102,123.58,123.55,0.72]
[1766518415038,31.97967166,123.58,123.54,0.66]
[1766518415570,3.65754622,123.57,123.53,3.63754622]
[1766518415749,18.43754622,123.57,123.53,3.63754622]
[1766518416068,18.43754622,123.57,123.54,0.66]
[1766518418486,8.09323405,123.56,123.54,0.66]
[1766518418657,0.71,123.55,123.52,0.69]
[1766518418840,3.68754622,123.55,123.52,0.69]
[1766518419039,0.71,123.54,123.51,0.69]
[1766518419273,2.97754622,123.55,123.49,35.42999383]
[1766518419274,0.71,123.52,123.49,35.42999383]
[1766518419479,0.71,123.52,123.49,11.12767296]
[1766518419777,3.68754622,123.53,123.49,11.12767296]
[1766518419968,2.97754622,123.52,123.49,0.69]
[1766518420143,15.49,123.53,123.49,0.69]
[1766518420346,22.87545291,123.53,123.5,0.69]
[1766518420761,14.78,123.53,123.51,0.69]
[1766518420979,23.58416387,123.55,123.52,0.69]
[1766518421271,11.78171009,123.55,123.52,0.69]
[1766518422184,3.68754622,123.54,123.51,0.69]
[1766518422350,0.71,123.54,123.51,0.69]
[1766518422553,8.80490268,123.54,123.51,0.69]
[1766518423167,8.09490268,123.54,123.51,0.69]
[1766518424279,8.09409135,123.55,123.53,0.69]
[1766518424785,8.09409135,123.55,123.52,0.69]
[1766518425372,11.78163757,123.55,123.52,0.69]
[1766518425583,11.78163757,123.55,123.51,0.69]
[1766518425753,2.97754622,123.54,123.51,0.69]
[1766518426280,32.01636035,123.55,123.51,0.69]
[1766518428678,29.03881413,123.55,123.51,0.69]
[1766518428887,32.01636035,123.55,123.51,0.69]
[1766518429878,29.03881413,123.55,123.51,0.69]
[1766518430066,30.94884999,123.55,123.51,0.69]
[1766518430778,8.80515483,123.54,123.51,0.69]
[1766518430973,30.95155138,123.54,123.51,0.69]
[1766518431477,0.71,123.53,123.49,0.69]
[1766518431675,1.91003586,123.52,123.49,0.69]
[1766518431972,2.62003586,123.53,123.5,0.69]
[1766518432173,0.71,123.53,123.5,0.69]
[1766518432775,8.80566246,123.53,123.5,0.69]
[1766518433483,10.71569832,123.53,123.5,0.69]
[1766518434782,8.80566246,123.53,123.5,0.69]
[1766518434982,10.71569832,123.53,123.5,0.69]
[1766518435480,22.87485819,123.54,123.51,0.69]
[1766518435685,22.87485819,123.54,123.5,1.91003586]
[1766518435686,0.71,123.57,123.53,1.91003586]
[1766518435906,8.09323405,123.56,123.55,0.69]
[1766518436070,8.09287354,123.57,123.55,0.69]
[1766518436379,8.09287354,123.57,123.54,2.60003586]
[1766518436699,8.09287354,123.57,123.55,0.69]
[1766518438098,23.58220672,123.58,123.55,0.69]
[1766518438293,8.09220672,123.58,123.56,7.69]
[1766518439570,18.52914417,123.59,123.56,8.91003586]
[1766518439879,18.52914417,123.59,123.57,0.69]
[1766518440402,22.87090156,123.6,123.57,0.69]
[1766518440586,25.49093742,123.6,123.57,0.69]
[1766518441093,0.71,123.58,123.56,7.0]
[1766518441476,8.8023899,123.58,123.56,7.0]
[1766518442675,25.49242576,123.58,123.55,0.69]
[1766518442871,45.7222364,123.58,123.55,0.69]
[1766518444100,22.8723899,123.58,123.55,0.69]
[1766518444278,22.8723899,123.58,123.56,0.69]
[1766518444898,14.78,123.6,123.57,0.69]
[1766518446404,22.87105766,123.6,123.57,0.69]
[1766518446705,22.87105766,123.6,123.57,1.91003586]
[1766518446889,22.87105766,123.6,123.58,0.72]
[1766518447589,11.14767296,123.62,123.59,0.72]
[1766518447778,18.52714066,123.62,123.6,0.72]
[1766518448205,22.86878939,123.63,123.61,0.72]
[1766518448506,22.86878939,123.63,123.6,2.63003586]
[1766518448507,23.57878939,123.63,123.6,2.63003586]
[1766518449581,45.7104543,123.63,123.6,0.72]
[1766518451501,43.80041844,123.63,123.6,0.72]
[1766518451706,45.7104543,123.63,123.6,0.72]
[1766518453113,45.7104543,123.63,123.58,0.72]
[1766518453114,2.62003586,123.61,123.58,0.72]
[1766518453809,2.62003586,123.6,123.57,0.72]
[1766518454109,0.71,123.6,123.57,0.72]
[1766518454994,8.09061488,123.6,123.57,0.72]
[1766518455190,8.09061488,123.6,123.57,2.63003586]
[1766518455798,8.09061488,123.6,123.58,1.91003586]
[1766518455996,22.87009384,123.61,123.59,0.72]
[1766518456698,14.78,123.61,123.6,0.72]
[1766518456879,8.08954248,123.62,123.6,0.72]
[1766518459310,8.08954248,123.62,123.6,2.63003586]
[1766518460105,22.86892118,123.63,123.61,0.72]
[1766518460283,22.86892118,123.63,123.6,2.63003586]
[1766518464212,23.57892118,123.63,123.6,2.63003586]
[1766518464402,23.57892118,123.63,123.61,3.5]
[1766518465095,22.86892118,123.63,123.61,3.5]
[1766518465307,22.86892118,123.63,123.61,4.22]
[1766518466019,23.57892118,123.63,123.61,3.5]
[1766518475326,22.86892118,123.63,123.61,4.22]
[1766518477496,23.53892118,123.63,123.61,4.22]
[1766518479341,8.0873433,123.65,123.62,1.91003586]
[1766518479655,8.0873433,123.65,123.63,0.66]
[1766518480811,0.67,123.64,123.61,3.5]
[1766518481023,0.67,123.64,123.61,6.07003586]
[1766518481738,0.67,123.64,123.61,4.16]
[1766518481940,0.67,123.64,123.61,6.07003586]
[1766518482240,8.7573433,123.65,123.62,0.66]
[1766518483443,10.66737916,123.65,123.62,0.66]
[1766518483641,8.7573433,123.65,123.62,0.66]
[1766518484740,8.0873433,123.65,123.62,1.91003586]
[1766518485047,8.0873433,123.65,123.63,0.66]
[1766518489768,8.0873433,123.65,123.63,2.57003586]
[1766518490255,8.0873433,123.65,123.63,0.66]
[1766518490455,2.58003586,123.64,123.61,3.5]
[1766518490752,0.67,123.63,123.61,3.5]
[1766518491743,2.58003586,123.63,123.61,3.5]
[1766518491932,3.65017006,123.63,123.61,3.5]
[1766518492524,11.7391669,123.63,123.61,3.5]
[1766518494051,8.75899684,123.63,123.61,3.5]
[1766518494239,0.67,123.62,123.59,3.64017006]
[1766518494555,11.7391669,123.63,123.6,0.66]
[1766518495325,8.75899684,123.63,123.6,0.66]
[1766518495526,11.7391669,123.63,123.6,0.66]
[1766518495727,3.65017006,123.61,123.57,0.66]
[1766518496648,11.74071698,123.61,123.57,0.66]
[1766518500544,8.76054692,123.61,123.57,0.66]
[1766518500754,11.74071698,123.61,123.58,0.66]
[1766518504357,2.98017006,123.6,123.55,0.66]
[1766518504661,3.65017006,123.59,123.56,0.66]
[1766518505738,11.74183715,123.59,123.56,0.66]
[1766518505937,11.74183715,123.59,123.57,1.7]
[1766518506156,26.5211039,123.6,123.57,2.36]
[1766518506457,23.54093384,123.6,123.57,1.7]
[1766518506661,22.87093384,123.6,123.58,0.66]
[1766518508463,23.56093384,123.6,123.58,0.66]
[1766518511743,26.5411039,123.6,123.57,1.7]
[1766518511950,26.5411039,123.6,123.57,2.41]
[1766518512349,3.67017006,123.59,123.57,1.7]
[1766518513868,2.98017006,123.59,123.53,10.43767296]
[1766518514042,2.98017006,123.57,123.52,2.98017006]
[1766518514248,3.67017006,123.56,123.53,0.71]
[1766518514969,14.78,123.58,123.54,0.71]
[1766518515271,18.45017006,123.58,123.54,0.71]
[1766518516171,8.0925791,123.57,123.54,0.71]
[1766518517142,8.7825791,123.57,123.54,0.71]
[1766518518950,11.76274916,123.57,123.54,0.71]
[1766518522270,8.7825791,123.57,123.54,0.71]
[1766518522477,11.76274916,123.57,123.54,0.71]
[1766518526785,8.7825791,123.57,123.54,0.71]
[1766518526950,11.76274916,123.57,123.54,0.71]
[1766518530686,11.76274916,123.57,123.55,0.9]
[1766518531575,8.7825791,123.57,123.55,0.9]
[1766518533882,11.76274916,123.57,123.55,0.9]
[1766518534254,0.69,123.57,123.55,1.59]
[1766518534457,8.8122037,123.58,123.55,4.57017006]
[1766518534959,14.78,123.59,123.56,3.67017006]
[1766518535154,14.78,123.59,123.57,0.69]
[1766518535358,8.08930593,123.62,123.59,0.69]
[1766518535587,20.94263809,123.63,123.6,0.69]
[1766518535588,0.72,123.63,123.6,0.69]
[1766518535792,8.08895193,123.63,123.61,0.69]
[1766518536481,8.80895193,123.63,123.61,0.69]
[1766518537206,22.86812214,123.64,123.61,0.69]
[1766518537380,22.86812214,123.64,123.62,0.66]
[1766518538072,23.52812214,123.64,123.62,0.66]
[1766518541292,14.78,123.64,123.62,0.66]
[1766518541589,12.51017481,123.69,123.64,0.66]
[1766518541787,8.28499798,123.69,123.66,3.64017006]
[1766518542086,8.94499798,123.69,123.66,3.64017006]
[1766518542805,8.28499798,123.69,123.66,2.98017006]
[1766518542988,8.28499798,123.69,123.67,3.64017006]
[1766518543166,8.28499798,123.69,123.67,0.66]
[1766518543891,8.94499798,123.69,123.67,0.66]
[1766518545999,0.2,123.7,123.69,0.66]
[1766518546885,0.2,123.7,123.68,3.64017006]
[1766518547077,8.28429754,123.7,123.68,0.66]
[1766518548171,0.2,123.7,123.68,0.66]
[1766518550579,0.2,123.7,123.68,3.64017006]
[1766518552004,0.2,123.7,123.68,2.56464061]
[1766518552691,0.66,123.69,123.66,2.56464061]
[1766518554099,8.28423099,123.7,123.67,1.90464061]
[1766518554300,8.94423099,123.7,123.67,2.56464061]
[1766518555009,0.86,123.7,123.68,1.90464061]
[1766518555214,0.2,123.7,123.68,2.56464061]
[1766518556388,0.86,123.7,123.68,1.90464061]
[1766518557710,0.2,123.7,123.68,2.56464061]
[1766518558385,0.2,123.7,123.68,0.66]
[1766518558690,0.2,123.7,123.68,2.56464061]
[1766518558886,0.2,123.71,123.69,2.56464061]
[1766518559702,0.2,123.71,123.69,0.66]
[1766518560211,0.2,123.71,123.66,8.08653448]
[1766518560212,0.66,123.7,123.66,8.08653448]
[1766518560396,10.8480871,123.71,123.67,2.56464061]
[1766518561404,2.56464061,123.7,123.67,0.66]
[1766518561602,0.66,123.69,123.65,2.56464061]
[1766518561807,0.66,123.68,123.64,17.32464061]
[1766518562313,8.7455471,123.68,123.64,17.32464061]
[1766518562909,8.7455471,123.68,123.65,1.90464061]
[1766518565816,8.7455471,123.68,123.64,25.41260163]
[1766518566204,8.7455471,123.68,123.64,10.65260163]
[1766518567238,8.7455471,123.68,123.65,2.55464061]
[1766518569787,15.45,123.7,123.67,2.55464061]
[1766518569993,0.69,123.7,123.67,2.55464061]
[1766518575819,8.28391277,123.71,123.67,1.90464061]
[1766518576024,8.97391277,123.71,123.68,0.65]
[1766518576920,0.69,123.7,123.67,0.65]
[1766518577304,0.69,123.7,123.67,2.55464061]
[1766518579215,0.69,123.7,123.67,10.64060283]
[1766518580122,8.77416766,123.7,123.67,0.65]
[1766518580324,8.08416766,123.7,123.66,2.55464061]
[1766518580703,0.69,123.69,123.66,2.55464061]
[1766518581440,0.69,123.69,123.66,10.641329]
[1766518584731,0.69,123.69,123.66,2.55464061]
[1766518587735,0.69,123.69,123.67,2.57464061]
[1766518587936,8.75416766,123.7,123.67,2.57464061]
[1766518588142,0.67,123.7,123.67,2.57464061]
[1766518588718,0.67,123.7,123.68,1.90464061]
[1766518588937,8.95373448,123.71,123.68,2.57464061]
[1766518591942,0.2,123.71,123.68,9.98997477]
[1766518592142,0.2,123.71,123.69,2.57464061]
[1766518592438,0.2,123.71,123.7,2.57464061]
[1766518592643,10.63767296,123.73,123.7,2.57464061]
[1766518593040,19.38979082,123.73,123.7,0.67]
[1766518593631,0.67,123.72,123.69,2.57464061]
[1766518593831,0.67,123.72,123.69,0.67]
[1766518594026,0.67,123.71,123.67,0.67]
[1766518594232,0.67,123.7,123.67,2.57464061]
[1766518595631,8.75411393,123.7,123.67,2.57464061]
[1766518595837,8.75411393,123.7,123.67,0.67]
[1766518596033,8.75411393,123.7,123.67,2.57464061]
[1766518599247,0.67,123.7,123.67,2.57464061]
[1766518604258,8.80303983,123.72,123.68,1.90464061]
[1766518604434,0.72,123.72,123.7,1.90464061]
[1766518604634,10.63767296,123.73,123.7,2.60464061]
[1766518604844,11.35767296,123.73,123.7,2.60464061]
[1766518605038,11.35767296,123.73,123.7,8.78404622]
[1766518605241,0.2,123.73,123.71,2.60464061]
[1766518606258,9.00179523,123.74,123.7,8.89245365]
[1766518606259,0.2,123.74,123.7,8.89245365]
[1766518606452,0.2,123.74,123.72,2.60464061]
[1766518606660,0.2,123.74,123.73,0.7]
[1766518609165,0.2,123.75,123.74,0.7]
[1766518610262,0.2,123.75,123.73,0.7]
[1766518610449,0.2,123.75,123.73,2.60464061]
[1766518611370,8.28083485,123.75,123.72,0.7]
[1766518611568,0.2,123.75,123.73,0.7]
[1766518611777,0.2,123.75,123.73,2.60464061]
[1766518611949,0.2,123.75,123.73,3.67312147]
[1766518612350,0.2,123.75,123.73,0.7]